fUSD/lending_fUSD_20250524
["ID","MTS","AMOUNT","RATE_DAILY","PERIOD"]
[362260241,1748124632450,-328.58388731,0.00019178,2]
[362260243,1748124632460,-246.01611269,0.00019178,2]
[362260246,1748124632479,-173.98388731,0.00019178,2]
[362260247,1748124632488,-420.0,0.00019178,2]
[362260249,1748124632498,-420.0,0.00019178,2]
[362260251,1748124632507,-420.0,0.00019178,2]
[362260253,1748124632517,-14.38343063,0.00019178,2]
[362260772,1748124638041,-345.57238214,0.00019178,2]
[362260774,1748124638051,-420.0,0.00019178,2]
[362260776,1748124638060,-420.0,0.00019178,2]
[362260777,1748124638070,-420.0,0.00019178,2]
[362260779,1748124638080,-420.0,0.00019178,2]
[362260781,1748124638089,-420.0,0.00019178,2]
[362260783,1748124638099,-420.0,0.00019178,2]
[362260784,1748124638108,-420.0,0.00019178,2]
[362260786,1748124638117,-420.0,0.00019178,2]
[362260788,1748124638127,-420.0,0.00019178,2]
[362260790,1748124638137,-420.0,0.00019178,2]
[362260792,1748124638146,-420.0,0.00019178,2]
[362260793,1748124638156,-420.0,0.00019178,2]
[362260795,1748124638165,-420.0,0.00019178,2]
[362260797,1748124638175,-2563.25,0.00019178,2]
[362260799,1748124638184,-422.74,0.00019178,2]
[362260800,1748124638194,-420.0,0.00019178,2]
[362260802,1748124638203,-420.0,0.00019178,2]
[362260804,1748124638212,-420.0,0.00019178,2]
[362260805,1748124638223,-420.0,0.00019178,2]
[362260807,1748124638232,-413.43154525,0.00019178,2]
[362260809,1748124638243,-420.0,0.00019178,2]
[362260811,1748124638252,-420.0,0.00019178,2]
[362260813,1748124638266,-420.0,0.00019178,2]
[362260815,1748124638277,-486.35,0.00019178,2]
[362260816,1748124638288,-420.0,0.00019178,2]
[362260818,1748124638299,-167.63,0.00019205,2]
[362260820,1748124638310,-285.38950182,0.00019205,2]
[362260822,1748124638328,-134.61049818,0.00019205,2]
[362260824,1748124638339,-420.0,0.00019205,2]
[362260825,1748124638349,-420.0,0.00019205,2]
[362260827,1748124638360,-420.0,0.00019205,2]
[362260829,1748124638371,-420.0,0.00019205,2]
[362260831,1748124638381,-420.0,0.00019205,2]
[362260833,1748124638391,-432.92,0.00019205,2]
[362260835,1748124638400,-2563.25,0.00019205,2]
[362260836,1748124638410,-439.68,0.00019205,2]
[362260838,1748124638419,-420.0,0.00019205,2]
[362260840,1748124638429,-420.0,0.00019205,2]
[362260842,1748124638438,-420.0,0.00019205,2]
[362260844,1748124638447,-420.0,0.00019205,2]
[362260846,1748124638457,-465.30392976,0.00019226,2]
[362260847,1748124638468,-426.85,0.00019232,2]
[362260849,1748124638477,-420.0,0.00019232,2]
[362260851,1748124638487,-420.0,0.00019232,2]
[362260853,1748124638496,-2563.25,0.00019232,2]
[362260855,1748124638505,-420.0,0.00019232,2]
[362260856,1748124638515,-420.0,0.00019232,2]
[362260858,1748124638525,-420.0,0.00019232,2]
[362260860,1748124638535,-614.09345001,0.00019258,2]
[362260862,1748124638544,-222.39,0.0001926,2]
[362260864,1748124638554,-420.0,0.0001926,2]
[362260865,1748124638563,-2563.25,0.0001926,2]
[362260867,1748124638573,-420.0,0.0001926,2]
[362260869,1748124638582,-420.0,0.0001926,2]
[362260871,1748124638591,-420.0,0.0001926,2]
[362260873,1748124638600,-1741.254,0.00019269,2]
[362260874,1748124638610,-420.0,0.00019287,2]
[362260876,1748124638619,-2563.25,0.00019287,2]
[362260878,1748124638629,-420.0,0.00019287,2]
[362260880,1748124638638,-420.0,0.00019287,2]
[362260882,1748124638647,-420.0,0.00019287,2]
[362260883,1748124638656,-292.49457707,0.00019301,2]
[362260885,1748124638666,-3459.95944061,0.00019305,2]
[362260887,1748124638675,-420.0,0.00019315,2]
[362260889,1748124638685,-2563.25,0.00019315,2]
[362260891,1748124638694,-420.0,0.00019315,2]
[362260892,1748124638703,-213.94,0.00019315,2]
[362260894,1748124638713,-420.0,0.00019315,2]
[362260896,1748124638722,-420.0,0.00019342,2]
[362260898,1748124638732,-2563.25,0.00019342,2]
[362260900,1748124638741,-420.0,0.00019342,2]
[362260901,1748124638751,-420.0,0.00019342,2]
[362260903,1748124638761,-457.87002905,0.00019356,2]
[362260905,1748124638770,-420.0,0.00019369,2]
[362260907,1748124638779,-2563.25,0.00019369,2]
[362260909,1748124638789,-420.0,0.00019369,2]
[362260910,1748124638799,-420.0,0.00019369,2]
[362260912,1748124638808,-420.0,0.00019397,2]
[362260914,1748124638817,-2563.25,0.00019397,2]
[362260916,1748124638826,-420.0,0.00019397,2]
[362260918,1748124638835,-284.95,0.00019397,2]
[362260919,1748124638845,-420.0,0.00019424,2]
[362260921,1748124638855,-2563.25,0.00019424,2]
[362260923,1748124638864,-420.0,0.00019424,2]
[362260925,1748124638874,-420.0,0.00019452,2]
[362260927,1748124638883,-2563.25,0.00019452,2]
[362260929,1748124638892,-420.0,0.00019452,2]
[362260931,1748124638906,-420.0,0.00019479,2]
[362260933,1748124638915,-2563.25,0.00019479,2]
[362260934,1748124638925,-420.0,0.00019479,2]
[362260936,1748124638934,-420.0,0.00019506,2]
[362260938,1748124638944,-2563.25,0.00019506,2]
[362260940,1748124638954,-420.0,0.00019506,2]
[362260942,1748124638965,-420.0,0.00019534,2]
[362260944,1748124638974,-2563.25,0.00019534,2]
[362260945,1748124638984,-420.0,0.00019534,2]
[362260946,1748124638993,-215.36,0.00019561,2]
[362260947,1748124639003,-2563.25,0.00019561,2]
[362260948,1748124639013,-420.0,0.00019561,2]
[362260949,1748124639022,-2563.25,0.00019589,2]
[362260950,1748124639031,-521.54,0.00019589,2]
[362260951,1748124639041,-4054.0,0.00019592,2]
[362260952,1748124639051,-425.517628,0.00019599,2]
[362260953,1748124639060,-2563.25,0.00019616,2]
[362260954,1748124639070,-2563.25,0.00019643,2]
[362260955,1748124639079,-2563.25,0.00019671,2]
[362260956,1748124639088,-2563.25,0.00019698,2]
[362260957,1748124639098,-1744.412,0.00019701,2]
[362260958,1748124639108,-2563.25,0.00019726,2]
[362260959,1748124639117,-150.43,0.00019726,2]
[362260961,1748124639127,-1159.67,0.00019726,2]
[362260963,1748124639136,-300.86,0.00019726,2]
[362260965,1748124639146,-150.43,0.00019726,2]
[362260967,1748124639155,-1159.67,0.00019726,2]
[362260969,1748124639165,-2563.25,0.00019753,2]
[362260971,1748124639174,-2563.25,0.0001978,2]
[362260973,1748124639184,-2563.39999999,0.00019808,2]
[362260975,1748124639193,-638.06222267,0.00019811,2]
[362260977,1748124639203,-638.06222267,0.00019822,2]
[362260979,1748124639212,-638.06222267,0.00019833,2]
[362260981,1748124639222,-200.0,0.0001984,2]
[362260983,1748124639231,-638.06222267,0.00019844,2]
[362260984,1748124639240,-638.06222267,0.00019856,2]
[362260985,1748124639251,-638.06222267,0.00019867,2]
[362260986,1748124639265,-638.06222267,0.00019878,2]
[362260987,1748124639274,-638.06222267,0.00019889,2]
[362260988,1748124639284,-690.88473019,0.000199,2]
[362260989,1748124639294,-638.06222267,0.000199,2]
[362260990,1748124639305,-500.0,0.000199,2]
[362260991,1748124639314,-18824.38950739,0.000199,2]
[362260992,1748124639324,-1013.84420664,0.000199,2]
[362260993,1748124639334,-1018.21169286,0.000199,2]
[362260994,1748124639344,-158.3297441,0.0001999,2]
[362260995,1748124639354,-158.3297441,0.0001999,2]
[362260996,1748124639364,-7678.9073823,0.00019996,2]
[362260997,1748124639374,-425.25857866,0.00019999,2]
[362260998,1748124639383,-1000.0,0.00019999,2]
[362261000,1748124639393,-500.0,0.00019999,2]
[362261002,1748124639402,-500.0,0.00019999,2]
[362261004,1748124639411,-223.54,0.00019999,2]
[362261006,1748124639421,-500.0,0.00019999,2]
[362261008,1748124639430,-500.0,0.00019999,2]
[362261011,1748124639440,-500.0,0.00019999,2]
[362261013,1748124639449,-500.0,0.00019999,2]
[362261015,1748124639462,-500.0,0.00019999,2]
[362261017,1748124639472,-500.0,0.00019999,2]
[362261019,1748124639481,-500.0,0.00019999,2]
[362261021,1748124639490,-500.0,0.00019999,2]
[362261023,1748124639500,-500.0,0.00019999,2]
[362261025,1748124639509,-500.0,0.00019999,2]
[362261027,1748124639519,-423.67,0.00019999,2]
[362261029,1748124639528,-193.96055058,0.0002,2]
[362261031,1748124639538,-118434.18042292,0.0002,2]
[362261034,1748124639551,-3098.24221056,0.0002,2]
[362261036,1748124639562,-982.30924896,0.0002,2]
[362261038,1748124639574,-999.42965019,0.0002,2]
[362261040,1748124639585,-792.3496034,0.0002,2]
[362261042,1748124639596,-2104.25450206,0.0002,2]
[362261133,1748124640352,-5000.0,0.000199,2]
[362261135,1748124640362,-307.03333796,0.0002,2]
[362261137,1748124640374,-18279.08954269,0.0002,2]
[362261139,1748124640386,-133979.40459284,0.0002,2]
[362261141,1748124640395,-968517.44821895,0.0002,2]
[362261144,1748124640418,-22087.98741616,0.0002,2]
[362261147,1748124640432,-49292.59598084,0.0002,2]
[362261149,1748124640444,-27871.78258243,0.0002,2]
[362261194,1748124640862,-434.15677188,0.0002,2]
[362261196,1748124640877,-100636.19477766,0.0002,2]
[362261427,1748124643206,-422.26974166,0.0002,2]
[362261439,1748124643322,-500.0,0.0002,2]
[362261441,1748124643333,-1269.40848514,0.0002,2]
[362261448,1748124643383,-11134.87626,0.0002,2]
[362261456,1748124643441,-3730.22250696,0.0002,2]
[362261731,1748124646179,-312.47862028,0.0002,2]
[362261733,1748124646192,-1979.19426842,0.0002,2]
[362261739,1748124646239,-959.73856554,0.0002,2]
[362261741,1748124646251,-26167.96130514,0.0002,2]
[362261752,1748124646360,-381.56,0.0002,2]
[362261755,1748124646381,-1281.47839881,0.0002,2]
[362261759,1748124646421,-1750.0,0.0002,2]
[362261766,1748124646481,-74014.18227082,0.0002,2]
[362261780,1748125267958,279.42,0.00026348,120]
[362261781,1748125536250,2446.38051852,9e-05,2]
[362261782,1748125556119,-203.0,0.00018555,2]
[362261783,1748125556142,-279.42,0.00019162,2]
[362261784,1748125556162,-12.91088583,0.00019178,2]
[362261785,1748125589633,530.47,0.00017262,2]
[362261787,1748125616739,366.41,0.00013699,2]
[362261788,1748125632098,-407.08911417,0.00019178,2]
[362261789,1748125632119,-61.03585007,0.00019178,2]
[362261791,1748125698764,250.0,0.00015,2]
[362261792,1748125700051,300.0,0.00017,2]
[362261794,1748125718221,150.0,0.00018,2]
[362261817,1748125838318,-350.0,0.00019,2]
[362261818,1748125838328,-85.70789955,0.00019178,2]
[362261819,1748125838339,-174.53950747,0.00019178,2]
[362261820,1748125838348,-408.36414993,0.00019178,2]
[362261821,1748125838358,-530.47,0.00019526,2]
[362261822,1748125838367,-382.965865,0.00019599,2]
[362261823,1748125838376,-2694.841,0.00019748,2]
[362261824,1748125838385,-300.0,0.00019779,2]
[362261825,1748125838394,-4673.42671847,0.0001978,2]
[362261826,1748125838405,-12604.7355448,0.0001978,2]
[362261827,1748125838416,-33627.887737,0.0001978,2]
[362261828,1748125838426,-943.5,0.00019826,7]
[362261829,1748125838435,-638.06222272,0.000199,2]
[362261830,1748125838444,-170.2,0.000199,2]
[362261831,1748125838453,-170.2,0.000199,2]
[362261832,1748125838462,-150.0,0.000199,2]
[362261833,1748125838474,-267.37477981,0.00019973,2]
[362261834,1748125838484,-207.4,0.00019988,2]
[362261835,1748125838493,-460.42930309,0.00019988,2]
[362261836,1748125838502,-151.0,0.00019988,2]
[362261837,1748125838511,-1395.53,0.00019996,2]
[362261838,1748125838520,-696.27239306,0.00019996,2]
[362261839,1748125838531,-202.17607914,0.00019996,2]
[362261840,1748125838541,-55.49771089,0.00019996,2]
[362261842,1748125838551,-606.65539723,0.00019996,2]
[362261844,1748125838562,-7867.5387769,0.00019996,2]
[362261846,1748125838574,-21451.39073484,0.00019996,2]
[362261849,1748125838585,-1581.99046123,0.00019996,2]
[362261851,1748125838601,-2279.58790391,0.00019996,2]
[362261853,1748125838611,-4949.7421725,0.00019996,2]
[362261855,1748125838621,-3827.42138151,0.00019999,2]
[362261857,1748125838630,-214.22,0.00019999,2]
[362261859,1748125838640,-207690.1486055,0.0002,2]
[362261861,1748125838649,-4000.0,0.0002,4]
[362261863,1748125838658,-3271.36051202,0.0002,4]
[362261865,1748125838667,-773059.01166102,0.0002,2]
[362261960,1748125839547,-3157.14757893,0.0002,2]
[362261962,1748125839559,-905.7001952,0.0002,2]
[362261965,1748125839570,-614.97,0.0002,2]
[362261972,1748125839628,-334.50747262,0.0002,2]
[362261974,1748125839642,-780.8729044,0.0002,2]
[362262051,1748125840379,-259.58012086,0.00018803,2]
[362262094,1748125840808,-404.35102751,0.00018803,2]
[362262096,1748125840819,-1102092.50178428,0.0002,2]
[362262102,1748125840889,-694.41583691,0.0002,2]
[362262466,1748125846268,-441.18848038,0.00019748,2]
[362262470,1748125846540,-61.43751962,0.00019748,2]
[362262471,1748125846550,-567.61246673,0.00019748,2]
[362262472,1748125846621,-465.68401098,0.00019748,2]
[362262473,1748125846706,-3.34952229,0.00019748,2]
[362262474,1748125846716,-1000.0,0.000199,2]
[362262477,1748125846936,-5532.15151406,0.0002,2]
[362262601,1748126631397,516.38,0.00016801,2]
[362262602,1748126695530,359.35,0.00013699,2]
[362262604,1748126737119,-659.97443536,0.00019,2]
[362262605,1748126806125,-344.41468963,0.00019065,2]
[362262606,1748126854096,-171.96531037,0.00019065,2]
[362262607,1748126854119,-207.4,0.00019166,2]
[362262608,1748126854142,-228.80298857,0.00019178,2]
[362262609,1748126949378,-1000.0,0.00018735,2]
[362262610,1748126949401,-191.19701143,0.00019178,2]
[362262611,1748126949423,-297.3219665,0.00019178,2]
[362262612,1748126949445,-1043.45,0.00019178,2]
[362262613,1748126949467,-1043.45,0.00019205,2]
[362262614,1748126949489,-1043.45,0.00019232,2]
[362262615,1748126949512,-300.0,0.00019259,2]
[362262616,1748126949535,-1043.45,0.0001926,2]
[362262617,1748126949557,-1043.45,0.00019287,2]
[362262618,1748126949578,-165.17,0.0001929,2]
[362262619,1748126949601,-1043.45,0.00019315,2]
[362262620,1748126949624,-1043.45,0.00019342,2]
[362262621,1748126949647,-742.16102207,0.00019369,2]
[362262622,1748126950646,-301.28897793,0.00019369,2]
[362262623,1748126950671,-1043.45,0.00019397,2]
[362262624,1748126950696,-1043.45,0.00019424,2]
[362262625,1748126950721,-1043.45,0.00019452,2]
[362262626,1748126950744,-1043.45,0.00019479,2]
[362262627,1748126950770,-912.62,0.000195,2]
[362262628,1748126950793,-162.91,0.000195,2]
[362262629,1748126950818,-1043.45,0.00019506,2]
[362262630,1748126950840,-500.0,0.00019507,2]
[362262631,1748126950862,-483.0,0.00019533,2]
[362262632,1748126950885,-1043.45,0.00019534,2]
[362262633,1748126950908,-1043.45,0.00019561,2]
[362262634,1748126950929,-336.03102207,0.00019588,2]
[362262635,1748126951592,-982.18600553,0.00019588,2]
[362262636,1748126951615,-668.65185757,0.00019588,2]
[362262637,1748126951638,-668.65185757,0.00019588,2]
[362262638,1748126951659,-151.0,0.00019588,2]
[362262639,1748126951682,-1043.45,0.00019589,2]
[362262640,1748126951706,-454.002843,0.00019599,2]
[362262641,1748126951726,-150.0,0.00019599,2]
[362262642,1748126951748,-162.91,0.000196,2]
[362262643,1748126951768,-458.56,0.000196,2]
[362262644,1748126951788,-1159.67,0.000196,2]
[362262645,1748126951809,-458.56,0.000196,2]
[362262646,1748126951830,-162.91,0.000196,2]
[362262647,1748126951850,-162.91,0.000196,2]
[362262648,1748126951870,-460.06,0.000196,2]
[362262649,1748126951892,-162.91,0.000196,2]
[362262650,1748126951914,-458.56,0.000196,2]
[362262651,1748126951936,-162.91,0.000196,2]
[362262652,1748126951958,-162.91,0.000196,2]
[362262653,1748126951980,-162.91,0.000196,2]
[362262654,1748126952002,-458.56,0.000196,2]
[362262655,1748126952024,-917.12,0.000196,2]
[362262656,1748126952046,-370.59743633,0.000196,2]
[362262657,1748126952283,-87.96256367,0.000196,2]
[362262658,1748126952305,-458.56,0.000196,2]
[362262659,1748126952326,-154.96,0.000196,2]
[362262660,1748126952348,-340.4,0.000196,2]
[362262661,1748126952370,-150.0,0.000196,2]
[362262662,1748126952394,-1043.45,0.00019616,2]
[362262663,1748126952417,-1043.45,0.00019643,2]
[362262664,1748126952440,-1043.45,0.00019671,2]
[362262665,1748126952464,-559.0,0.00019671,2]
[362262666,1748126952487,-1043.45,0.00019698,2]
[362262667,1748126952508,-890.33,0.000197,2]
[362262668,1748126952531,-458.56,0.000197,2]
[362262669,1748126952552,-162.91,0.000197,2]
[362262670,1748126952572,-490.51285474,0.00019713,2]
[362262671,1748126952593,-623.63928442,0.00019714,2]
[362262672,1748126952615,-500.0,0.00019714,2]
[362262673,1748126952636,-208.67410497,0.00019714,2]
[362262674,1748126952657,-500.0,0.00019714,2]
[362262675,1748126952680,-240.6911922,0.00019714,2]
[362262676,1748126952730,-259.3088078,0.00019714,2]
[362262677,1748126952751,-500.0,0.00019714,2]
[362262678,1748126952774,-500.0,0.00019714,2]
[362262679,1748126952795,-371.08201255,0.00019714,2]
[362262680,1748126952816,-500.0,0.00019714,2]
[362262681,1748126952838,-409.81030257,0.00019714,2]
[362262682,1748126952860,-500.0,0.00019714,2]
[362262683,1748126952882,-500.0,0.00019714,2]
[362262684,1748126952902,-500.0,0.00019714,2]
[362262685,1748126952922,-5959.79887708,0.00019716,2]
[362262686,1748126953507,-10000.0,0.00019716,2]
[362262687,1748126953663,-56.58546886,0.00019716,2]
[362262688,1748126953687,-1043.45,0.00019726,2]
[362262689,1748126953709,-162.91,0.00019726,2]
[362262690,1748126953730,-1788.9,0.00019726,2]
[362262691,1748126953751,-150.43,0.00019726,2]
[362262692,1748126953773,-1159.67,0.00019726,2]
[362262693,1748126953794,-150.43,0.00019726,2]
[362262694,1748126953815,-1159.67,0.00019726,2]
[362262695,1748126953836,-300.46,0.00019726,2]
[362262696,1748126953857,-150.0,0.00019726,2]
[362262697,1748126953878,-907.08,0.00019726,2]
[362262698,1748126953900,-453.54,0.00019726,2]
[362262699,1748126953928,-453.54,0.00019726,2]
[362262700,1748126953950,-170.2,0.00019726,2]
[362262701,1748126953972,-300.0,0.00019726,2]
[362262702,1748126953995,-170.2,0.00019726,2]
[362262703,1748126954017,-453.54,0.00019726,2]
[362262704,1748126954039,-340.4,0.00019726,2]
[362262705,1748126954063,-628.99453114,0.00019748,2]
[362262706,1748126954117,-340.32,0.00019726,2]
[362262707,1748126954139,-5143.22646886,0.00019748,2]
[362262708,1748126954159,-154.0,0.00019748,2]
[362262709,1748126954185,-4054.0,0.00019748,2]
[362262710,1748126954207,-308.45353114,0.00019748,2]
[362262711,1748126954494,-644.28146886,0.00019748,2]
[362262712,1748126954515,-1325.107,0.00019748,2]
[362262713,1748126954536,-154.623,0.00019748,2]
[362262714,1748126954558,-881.0,0.00019748,2]
[362262715,1748126954580,-632.0,0.00019748,2]
[362262716,1748126954604,-800.0,0.00019748,2]
[362262717,1748126954625,-1152.0,0.00019748,2]
[362262718,1748126954650,-1043.45,0.00019753,2]
[362262719,1748126954673,-1262.901,0.00019754,2]
[362262720,1748126954696,-150.0,0.00019778,2]
[362262721,1748126954724,-1043.45,0.0001978,2]
[362262722,1748126954745,-567.5366,0.000198,2]
[362262723,1748126954769,-343.65093114,0.00019808,2]
[362262724,1748126954890,-700.02677608,0.00019808,2]
[362262725,1748126954912,-1379.99422287,0.0001981,2]
[362262726,1748126954935,-150.0,0.00019851,7]
[362262727,1748126954959,-2485.2052,0.00019896,2]
[362262728,1748126954983,-500.0,0.000199,2]
[362262729,1748126955008,-4784.77380105,0.000199,2]
[362262730,1748126955436,-10000.0,0.000199,2]
[362262731,1748126955925,-10000.0,0.000199,2]
[362262732,1748126956117,-1979.02449895,0.000199,2]
[362262733,1748126956142,-1000.0,0.000199,2]
[362262734,1748126956164,-168.15238171,0.000199,2]
[362262735,1748126956191,-593.84371655,0.000199,2]
[362262736,1748126956214,-1541.70870093,0.000199,2]
[362262737,1748126956238,-1541.70870093,0.000199,2]
[362262738,1748126956263,-1541.70870093,0.000199,2]
[362262739,1748126956288,-1541.70870093,0.000199,2]
[362262740,1748126956311,-92.14459907,0.000199,2]
[362262741,1748126956468,-1449.56410186,0.000199,2]
[362262742,1748126956492,-1541.70870093,0.000199,2]
[362262743,1748126956520,-7008.72719721,0.000199,2]
[362262744,1748126956775,-6732.24045649,0.000199,2]
[362262745,1748126956799,-1541.70870093,0.000199,2]
[362262746,1748126956823,-1541.70870093,0.000199,2]
[362262747,1748126956846,-184.34214165,0.000199,2]
[362262748,1748126957390,-1357.36655928,0.000199,2]
[362262749,1748126957417,-1541.70870093,0.000199,2]
[362262750,1748126957441,-1541.70870093,0.000199,2]
[362262751,1748126957464,-1541.70870093,0.000199,2]
[362262752,1748126957490,-1541.70870093,0.000199,2]
[362262753,1748126957514,-1541.70870093,0.000199,2]
[362262754,1748126957537,-934.08993607,0.000199,2]
[362262755,1748126958147,-4065.91006393,0.000199,2]
[362262756,1748126958172,-350.57616788,0.000199,2]
[362262757,1748126958197,-5583.51376819,0.000199,2]
[362262758,1748126958625,-3861.76112729,0.000199,2]
[362262759,1748126958651,-150.0,0.00019923,2]
[362262760,1748126958674,-500.0,0.00019973,2]
[362262761,1748126958697,-500.0,0.00019973,2]
[362262762,1748126958721,-500.0,0.00019973,2]
[362262763,1748126958744,-500.0,0.00019973,2]
[362262764,1748126958769,-150.0,0.00019973,2]
[362262765,1748126958792,-211.10632547,0.0001999,2]
[362262766,1748126958816,-297.68100506,0.00019995,2]
[362262767,1748126958839,-631.1949164,0.00019996,2]
[362262768,1748126958862,-2698.25662578,0.00019996,2]
[362262769,1748126959281,-10000.0,0.00019996,2]
[362262770,1748126959403,-10000.0,0.00019996,2]
[362262771,1748126959686,-10000.0,0.00019996,2]
[362262772,1748126960295,-9823.18776772,0.00019996,2]
[362262773,1748126960317,-176.81223228,0.00019996,2]
[362262774,1748126960663,-1246.80782432,0.00019996,2]
[362262775,1748126960687,-5690.5921815,0.00019996,2]
[362262776,1748126960710,-205.3,0.00019999,2]
[362262777,1748126960733,-2857.29999418,0.00019999,2]
[362262778,1748126961290,-10000.0,0.00019999,2]
[362262779,1748126961829,-113.9301412,0.00019999,2]
[362262780,1748126961851,-2865.78590424,0.00019999,3]
[362262781,1748126961872,-193.96055058,0.0002,2]
[362262782,1748126961896,-6826.32340398,0.0002,2]
[362262783,1748126970184,-2500.0,0.000199,2]
[362262784,1748126970209,-7500.0,0.0002,2]
[362262785,1748126970850,-10000.0,0.0002,2]
[362262786,1748126971467,-10000.0,0.0002,2]
[362262787,1748126971818,-10000.0,0.0002,2]
[362262788,1748126972154,-10000.0,0.0002,2]
[362262789,1748126972728,-10000.0,0.0002,2]
[362262790,1748126973049,-10000.0,0.0002,2]
[362262791,1748126973576,-10000.0,0.0002,2]
[362262792,1748126973897,-10000.0,0.0002,2]
[362262793,1748126974220,-10000.0,0.0002,2]
[362262794,1748126974536,-10000.0,0.0002,2]
[362262795,1748126974841,-10000.0,0.0002,2]
[362262796,1748126975431,-10000.0,0.0002,2]
[362262797,1748126975998,-10000.0,0.0002,2]
[362262798,1748126976571,-10000.0,0.0002,2]
[362262799,1748126977121,-10000.0,0.0002,2]
[362262800,1748126977706,-10000.0,0.0002,2]
[362262801,1748126978313,-10000.0,0.0002,2]
[362262802,1748126978863,-10000.0,0.0002,2]
[362262803,1748126979440,-9998.07191429,0.0002,2]
[362262804,1748126979463,-1.92808571,0.0002,2]
[362262805,1748126979744,-10000.0,0.0002,2]
[362262806,1748126980355,-10000.0,0.0002,2]
[362262807,1748126980673,-10000.0,0.0002,2]
[362262808,1748126981183,-10000.0,0.0002,2]
[362262809,1748126981718,-10000.0,0.0002,2]
[362262810,1748126982258,-10000.0,0.0002,2]
[362262811,1748126982797,-10000.0,0.0002,2]
[362262812,1748126983383,-10000.0,0.0002,2]
[362262813,1748126983718,-10000.0,0.0002,2]
[362262814,1748126984239,-360.0715388,0.00019996,2]
[362262815,1748126984268,-9639.9284612,0.0002,2]
[362262816,1748126984730,-10000.0,0.0002,2]
[362262817,1748126985220,-10000.0,0.0002,2]
[362262818,1748126985717,-10000.0,0.0002,2]
[362262819,1748126986161,-10000.0,0.0002,2]
[362262820,1748126986841,-10000.0,0.0002,2]
[362262821,1748126987896,-10000.0,0.0002,2]
[362262822,1748126988638,-408.602558,0.00019599,2]
[362262823,1748126988662,-9591.397442,0.0002,2]
[362262824,1748126989590,-10000.0,0.0002,2]
[362262825,1748127002240,-300.0,0.00019999,2]
[362262826,1748127002265,-9700.0,0.0002,2]
[362262827,1748127010944,-1523.0212,0.0001971,2]
[362262828,1748127010967,-229.1569,0.000199,2]
[362262829,1748127010990,-1140.31153008,0.0001999,2]
[362262830,1748127011012,-315.51036992,0.0001999,2]
[362262832,1748127031458,-1188.04007198,0.0002,2]
[362262836,1748127037405,-208.37670354,0.00019999,2]
[362262837,1748127037415,-212.20114473,0.00019999,2]
[362262838,1748127037424,-374.56466806,0.00019999,2]
[362262839,1748127037433,-4581.79140661,0.0002,2]
[362262840,1748127037444,-9578.06072568,0.0002,2]
[362262841,1748127037455,-724.06005491,0.0002,2]
[362262842,1748127037620,-255.49699607,0.0002,2]
[362262892,1748127038438,-85834.74840389,0.0002,2]
[362262894,1748127038448,-1075355.62129753,0.0002,2]
[362262896,1748127038457,-1073436.35148672,0.0002,2]
[362263032,1748127039550,-255.2475125,0.0002,2]
[362263034,1748127039561,-640.08419563,0.0002,2]
[362263036,1748127039574,-1102092.50178428,0.0002,2]
[362263039,1748127039598,-447.72653871,0.0002,2]
[362263051,1748127039703,-541.97165858,0.0002,2]
[362263053,1748127039715,-261937.12036021,0.0002,2]
[362263237,1748127041675,-871.984808,0.0002,2]